bitfinex/quotes_ETHUSD_20240827
["timestamp","ask_amount","ask_price","bid_price","bid_amount"]
[1724741536228,3.70158052,2685.6,2685.2,2.60681]
[1724741537337,1.24858052,2685.4,2685.2,2.60681]
[1724741538145,5.44983182,2685.6,2685.2,2.60681]
[1724741538317,2.453,2685.6,2685.3,5.21346]
[1724741538535,2.453,2685.6,2685.3,2.6067]
[1724741539724,2.453,2685.6,2685.4,2.60668]
[1724741540237,2.453,2685.6,2685.3,2.6067]
[1724741541875,2.453,2685.6,2685.4,2.60668]
[1724741543354,5.44983182,2685.6,2685.1,2.60696]
[1724741543553,2.99683182,2685.4,2684.9,2.60712]
[1724741543753,4.15504565,2685.4,2685.0,2.60707]
[1724741544068,2.99683182,2685.1,2685.0,2.60707]
[1724741544714,1.15821383,2685.3,2685.0,2.607]
[1724741544920,4.15504565,2685.4,2685.0,2.607]
[1724741545141,1.15821383,2685.3,2685.0,2.607]
[1724741545469,4.15504565,2685.4,2685.0,2.607]
[1724741546467,3.9292192,2685.5,2685.1,2.60697]
[1724741546812,3.9292192,2685.5,2685.0,2.607]
[1724741547912,1.15821383,2685.4,2685.0,2.607]
[1724741548671,1.15821383,2685.3,2684.8,2.60724]
[1724741548972,1.15821383,2685.2,2684.8,2.60724]
[1724741549126,3.53961383,2685.2,2684.8,2.60724]
[1724741549322,2.3814,2685.2,2684.8,2.60724]
[1724741551279,3.53961383,2685.2,2684.8,2.60724]
[1724741552405,1.15821383,2685.3,2684.9,2.60715]
[1724741552615,1.15821383,2685.4,2685.0,5.21397]
[1724741552900,1.5478192,2685.5,2685.0,2.60698]
[1724741554405,1.16610832,2685.4,2685.0,2.60698]
[1724741554555,1.16610832,2685.4,2685.1,0.260698]
[1724741554761,0.00789449,2685.4,2685.1,5.359198]
[1724741555433,0.00789449,2685.4,2685.1,2.752298]
[1724741556061,1.16610832,2685.4,2685.1,2.752298]
[1724741558313,1.15821383,2685.3,2685.0,2.60698]
[1724741559004,1.15821383,2685.3,2684.8,3.361166]
[1724741559005,1.15821383,2685.2,2684.8,2.60723]
[1724741559397,1.15821383,2685.1,2684.8,2.60723]
[1724741559785,1.16610832,2685.2,2684.8,2.60723]
[1724741560384,2.40705791,2685.1,2684.6,2.60742]
[1724741560585,3.46651383,2685.0,2684.7,2.60736]
[1724741560786,2.3083,2685.0,2684.7,2.60736]
[1724741561510,3.46651383,2685.0,2684.7,2.60736]
[1724741564123,3.46651383,2685.0,2684.6,3.378083]
[1724741564480,3.46651383,2685.0,2684.7,2.60735]
[1724741566917,3.46651383,2685.0,2684.4,2.60762]
[1724741567135,3.46651383,2684.8,2684.3,2.60775]
[1724741568378,1.15821383,2684.8,2684.4,2.60763]
[1724741568578,1.54800114,2684.9,2684.6,2.60744]
[1724741568579,1.15821383,2684.9,2684.6,2.60744]
[1724741568779,1.15821383,2684.8,2684.6,2.60744]
[1724741569186,1.15821383,2684.9,2684.6,2.60744]
[1724741569540,1.15821383,2684.8,2684.6,2.60744]
[1724741569848,3.46651383,2684.7,2684.2,2.6078]
[1724741570004,3.46651383,2684.7,2684.4,2.60765]
[1724741570005,2.3083,2684.7,2684.4,2.60765]
[1724741570180,2.3083,2684.7,2684.0,2.60802]
[1724741570181,3.46651383,2684.7,2684.0,2.60802]
[1724741570385,1.15821383,2684.6,2684.0,5.21599]
[1724741570585,1.15821383,2684.6,2684.1,2.60791]
[1724741571027,1.15821383,2684.5,2684.1,2.60791]
[1724741571329,1.15821383,2684.6,2684.1,2.60791]
[1724741571989,1.15821383,2684.6,2684.2,2.60784]
[1724741573086,1.15821383,2684.6,2684.3,2.60772]
[1724741573287,3.47440832,2684.7,2684.4,2.60762]
[1724741574321,3.47440832,2684.7,2684.0,2.60801]
[1724741574528,1.16610832,2684.6,2684.0,2.60801]
[1724741574731,1.16610832,2684.6,2684.2,2.60777]
[1724741575035,0.00647045,2684.6,2684.2,3.129348]
[1724741575494,1.16468428,2684.6,2684.2,3.129348]
[1724741576227,1.16468428,2684.6,2684.3,2.60775]
[1724741577017,0.00647045,2684.6,2684.3,2.60775]
[1724741577821,1.16468428,2684.6,2684.2,3.129348]
[1724741579516,1.16468428,2684.6,2684.3,2.60775]
[1724741580125,1.16324466,2684.6,2684.4,2.60764]
[1724741581635,1.16177336,2684.6,2684.4,2.60764]
[1724741582845,1.16031796,2684.6,2684.4,2.60764]
[1724741584867,0.00210413,2684.6,2684.5,2.60756]
[1724741585171,0.00210413,2684.6,2684.5,3.41715098]
[1724741586553,0.00210413,2684.6,2684.5,8.40620722]
[1724741586753,0.00210413,2684.6,2684.5,10.93927098]
[1724741587265,0.00210413,2684.6,2684.5,13.93927098]
[1724741590371,0.00210413,2684.6,2684.5,16.54683098]
[1724741590372,4.13e-06,2684.6,2684.5,16.54683098]
[1724741590576,4.13e-06,2684.6,2684.5,17.09683098]
[1724741593057,4.13e-06,2684.6,2684.5,13.93927098]
[1724741593445,4.13e-06,2684.6,2684.5,15.18853099]
[1724741602948,4.13e-06,2684.6,2684.5,7.27397099]
[1724741603743,4.13e-06,2684.6,2684.5,6.02471098]
[1724741603886,4.13e-06,2684.6,2684.5,2.60756]
[1724741603887,2.37790413,2684.6,2684.5,2.60756]
[1724741604955,3.62716414,2684.6,2684.2,2.60785]
[1724741605105,3.62716414,2684.6,2684.0,2.60796]
[1724741605106,1.24926001,2684.4,2684.0,2.60796]
[1724741605446,2.3779,2684.3,2683.8,2.60821]
[1724741605599,2.3779,2684.1,2683.7,2.60832]
[1724741606039,0.38957428,2684.0,2683.7,2.60832]
[1724741606339,0.38957428,2684.0,2683.8,2.60822]
[1724741612863,2.3779,2683.9,2683.8,2.60822]
[1724741615981,0.38957428,2684.0,2683.8,2.60822]
[1724741625469,0.38957428,2684.0,2683.9,2.60814]
[1724741625988,0.38957428,2684.0,2683.8,2.60822]
[1724741626501,0.38957428,2684.0,2683.6,2.6084]
[1724741626704,2.263,2683.9,2683.6,2.6084]
[1724741627067,2.263,2683.9,2683.4,2.6086]
[1724741628292,2.263,2683.9,2683.5,2.60852]
[1724741629133,2.263,2683.9,2683.7,2.60832]
[1724741631526,2.263,2683.9,2683.8,2.60824]
[1724741632405,0.38957428,2684.0,2683.8,2.60824]
[1724741634406,0.38957428,2684.0,2683.6,2.60843]
[1724741634818,0.38957428,2684.0,2683.7,2.60833]
[1724741635568,0.38957428,2684.0,2683.8,2.60822]
[1724741641635,0.38957428,2684.0,2683.6,2.60843]
[1724741642633,2.263,2683.9,2683.4,2.60859]
[1724741645375,3.42121383,2683.9,2683.4,2.60859]
[1724741646198,2.416,2683.8,2683.4,2.60859]
[1724741646402,2.416,2683.8,2683.4,3.130329]
[1724741646954,0.38951578,2683.7,2683.4,3.130329]
[1724741647474,0.38951578,2683.7,2683.2,2.6088]
[1724741647475,2.416,2683.6,2683.2,2.60875]
[1724741647795,3.57421383,2683.6,2683.2,2.60875]
[1724741648149,3.57421383,2683.6,2683.3,2.60872]
[1724741648388,1.15821383,2683.5,2683.3,2.60872]
[1724741649253,3.57421383,2683.6,2683.3,2.60872]
[1724741649592,1.15821383,2683.5,2683.3,2.60872]
[1724741649805,2.416,2683.4,2683.2,2.60875]
[1724741649985,1.15810483,2683.3,2683.2,2.60875]
[1724741651360,1.15810483,2683.4,2683.3,2.60872]
[1724741651987,1.15810483,2683.4,2683.3,5.739203]
[1724741652189,1.15810483,2683.6,2683.5,2.60853]
[1724741654774,0.38951578,2683.7,2683.6,2.60843]
[1724741655297,3.96362061,2683.7,2683.6,2.60843]
[1724741655504,2.80551578,2683.7,2683.6,2.60843]
[1724741655675,1.54776349,2683.7,2683.6,2.60843]
[1724741656397,1.54776349,2683.7,2683.6,3.130125]
[1724741662511,1.54776349,2683.7,2683.6,2.60843]
[1724741663792,1.54776349,2683.7,2683.5,2.60852]
[1724741664517,0.38951578,2683.7,2683.5,2.60852]
[1724741665271,2.4548,2683.6,2683.3,2.60865]
[1724741667877,1.54778011,2683.7,2683.2,2.3156]
[1724741668093,1.54778011,2683.7,2683.6,2.60843]
[1724741668602,0.38951578,2683.7,2683.6,2.60843]
[1724741671427,1.54809573,2683.7,2683.6,2.60843]
[1724741673833,0.38951578,2683.7,2683.6,2.60843]
[1724741674815,1.54435245,2683.8,2683.7,5.21666]
[1724741675019,1.54435245,2683.8,2683.7,9.26180408]
[1724741676344,1.1589337,2684.1,2683.9,2.60806]
[1724741676515,1.1589337,2684.0,2683.9,2.60806]
[1724741676714,1.1589337,2684.0,2683.9,3.04034339]
[1724741677435,1.93386439,2684.2,2684.0,2.60804]
[1724741677766,1.15866617,2684.1,2684.0,2.60804]
[1724741678057,3.95165245,2684.1,2684.0,2.60804]
[1724741678252,1.54435245,2684.1,2684.0,2.60804]
[1724741679417,2.4073,2684.0,2683.7,2.60833]
[1724741679652,1.15842517,2683.9,2683.7,2.60833]
[1724741679901,1.15842517,2683.9,2683.8,0.260833]
[1724741680032,1.15842517,2683.9,2683.7,2.60833]
[1724741680437,3.56572517,2683.8,2683.5,2.60848]
[1724741680641,1.15832634,2683.7,2683.5,2.60848]
[1724741681745,1.15832634,2683.6,2683.5,2.60848]
[1724741681949,1.15828833,2683.6,2683.5,2.60848]
[1724741682161,1.54456689,2683.7,2683.5,2.60848]
[1724741682670,1.15829709,2683.6,2683.5,2.60848]
[1724741682833,1.54456689,2683.7,2683.5,2.60848]
[1724741683014,1.15829666,2683.6,2683.5,2.60848]
[1724741683366,1.15827617,2683.6,2683.5,2.60848]
[1724741683511,1.54456689,2683.6,2683.5,2.60848]
[1724741683716,4.33793852,2683.8,2683.5,2.60848]
[1724741683717,1.54456689,2683.7,2683.5,2.60848]
[1724741684570,1.15830092,2683.6,2683.5,2.60848]
[1724741685413,1.15829595,2683.6,2683.5,2.60848]
[1724741685610,1.54456689,2683.7,2683.5,2.60848]
[1724741686261,1.15829695,2683.6,2683.5,2.60848]
[1724741687858,1.15829695,2683.6,2683.5,3.130199]
[1724741688061,1.15829695,2683.7,2683.6,2.60843]
[1724741688289,1.15843595,2683.8,2683.7,2.60833]
[1724741689131,1.15843595,2683.9,2683.8,2.60824]
[1724741689664,1.15843595,2684.0,2683.9,2.60814]
[1724741689867,1.54456689,2684.0,2683.9,2.60814]
[1724741690371,1.54456689,2684.1,2683.9,2.60814]
[1724741692055,1.15844677,2684.0,2683.9,2.60814]
[1724741692718,1.54456689,2684.1,2683.7,2.60833]
[1724741693034,1.15832896,2683.8,2683.7,2.60833]
[1724741693218,1.15832896,2683.9,2683.8,2.60824]
[1724741693655,1.54784537,2683.9,2683.8,2.60824]
[1724741696137,0.38951641,2683.9,2683.8,2.60824]
[1724741696320,1.54784537,2683.9,2683.8,2.60824]
[1724741697560,1.54784537,2683.9,2683.8,5.403197]
[1724741697934,0.38951641,2683.9,2683.8,5.403197]
[1724741698767,1.54784537,2683.9,2683.8,5.403197]
[1724741700864,1.54784537,2683.9,2683.8,8.011437]
[1724741701065,0.38951641,2683.9,2683.8,8.011437]
[1724741702968,0.38951641,2683.9,2683.8,3.129897]
[1724741703172,0.38951641,2683.9,2683.8,2.60824]
[1724741707488,0.38951641,2683.9,2683.8,5.21648]
[1724741709308,0.38951641,2683.9,2683.8,5.29099499]
[1724741709579,1.15832896,2684.1,2684.0,5.21608]
[1724741709800,1.15832896,2684.2,2684.1,5.2159]
[1724741715592,1.15832896,2684.2,2684.1,7.4724]
[1724741716559,1.15832896,2684.2,2684.1,5.2159]
[1724741719563,1.15832896,2684.2,2684.1,2.60795]
[1724741719764,1.15832896,2684.2,2684.0,2.60803]
[1724741720162,1.15832896,2684.2,2684.1,2.60795]
[1724741720563,1.54456689,2684.3,2684.1,2.60795]
[1724741720806,1.1571286,2684.2,2684.1,2.60795]
[1724741721162,1.1571286,2684.2,2684.1,7.11266789]
[1724741727515,1.1571286,2684.2,2684.1,6.46604808]
[1724741727674,3.4443286,2684.2,2684.1,2.60795]
[1724741728410,1.1571286,2684.2,2684.1,2.60795]
[1724741728714,1.1571286,2684.2,2684.1,5.2159]
[1724741729298,1.54456689,2684.3,2684.2,2.60785]
[1724741729496,1.54456689,2684.3,2684.2,5.2157]
[1724741731400,1.92834541,2684.4,2684.3,2.60775]
[1724741732691,0.38947142,2684.5,2684.4,2.60765]
[1724741736820,0.38947142,2684.5,2684.3,2.60775]
[1724741737334,0.38947142,2684.5,2684.1,2.60788]
[1724741737610,1.54472394,2684.2,2684.1,2.60787]
[1724741737814,1.93090493,2684.3,2684.2,2.60785]
[1724741738021,2.4566,2684.4,2684.2,2.60785]
[1724741740733,1.93123536,2684.3,2684.2,2.60785]
[1724741742329,1.93123028,2684.3,2684.2,2.60785]
[1724741743239,2.4566,2684.4,2684.2,2.60785]
[1724741744324,2.4566,2684.4,2684.1,2.60787]
[1724741744509,2.4566,2684.4,2684.0,2.60804]
[1724741744510,1.93139867,2684.2,2684.0,2.60804]
[1724741744710,1.54513509,2684.1,2684.0,2.60804]
[1724741745102,2.32090511,2684.2,2684.0,2.60804]
[1724741745609,2.32090511,2684.2,2684.1,2.60795]
[1724741747232,2.32095573,2684.2,2684.1,2.60795]
[1724741748860,2.84610644,2684.2,2684.1,2.60795]
[1724741749858,0.38950644,2684.2,2684.1,2.60795]
[1724741750956,0.38950644,2684.2,2683.9,5.21618]
[1724741751137,1.54522365,2684.0,2683.9,5.21618]
[1724741755231,1.54522365,2684.0,2683.9,5.86281281]
[1724741759901,1.15913851,2684.0,2683.9,5.86281281]
[1724741761858,0.38950644,2684.2,2684.1,5.2159]
[1724741762057,0.38950644,2684.2,2684.1,7.58520376]
[1724741762372,0.38950644,2684.2,2684.1,7.5107]
[1724741762730,0.38950644,2684.2,2684.1,9.01225209]
[1724741775100,0.38950644,2684.2,2684.1,14.62020209]
[1724741775314,4.13e-06,2684.6,2684.1,6.79635209]
[1724741775519,4.13e-06,2684.6,2684.5,6.46526808]
[1724741775722,4.13e-06,2684.6,2684.5,6.53976042]
[1724741775885,4.13e-06,2684.6,2684.5,7.35065412]
[1724741776225,4.13e-06,2684.6,2684.5,7.42514675]
[1724741776630,4.13e-06,2684.6,2684.5,7.35065412]
[1724741777287,4.13e-06,2684.6,2684.5,6.46526808]
[1724741782646,2.31750413,2684.6,2684.3,3.85786808]
[1724741782819,2.31750413,2684.6,2684.4,2.60765]
[1724741783020,4.13e-06,2684.6,2684.5,2.60756]
[1724741783422,4.13e-06,2684.6,2684.5,3.85770808]
[1724741783846,4.13e-06,2684.6,2684.5,6.46526808]
[1724741785222,4.13e-06,2684.6,2684.5,3.85770808]
[1724741785813,2.31750413,2684.6,2684.4,2.60763]
[1724741786225,2.31750413,2684.6,2684.3,3.85785808]
[1724741787212,2.31750413,2684.6,2684.3,6.46553808]
[1724741787614,2.31750413,2684.6,2684.3,3.85782808]
[1724741789061,2.31750413,2684.6,2684.4,2.60763]
[1724741789425,2.31750413,2684.6,2684.5,2.60756]
[1724741792443,4.13e-06,2684.6,2684.5,2.60756]
[1724741793962,4.13e-06,2684.6,2684.4,2.60764]
[1724741794757,2.3757,2684.5,2684.4,2.60764]
[1724741795333,2.76515101,2684.5,2684.4,2.60764]
[1724741798777,0.38945101,2684.5,2684.4,2.60764]
[1724741804446,1.54858952,2684.5,2684.4,2.60764]
[1724741804754,0.38945101,2684.5,2684.4,2.60764]
[1724741805585,1.54858952,2684.5,2684.4,2.60764]
[1724741807724,4.31037466,2684.5,2684.4,2.60764]
[1724741807978,4.69385423,2684.5,2684.1,2.60787]
[1724741808185,2.2586,2684.2,2683.9,2.60809]
[1724741808406,1.15782833,2684.0,2683.9,2.60809]
[1724741808550,1.54400306,2684.0,2683.7,2.6083]
[1724741808849,1.15744833,2683.9,2683.8,2.60824]
[1724741809548,1.15744833,2684.0,2683.8,2.60824]
[1724741809773,1.15744833,2684.0,2683.9,2.60814]
[1724741809983,1.15744833,2684.1,2684.0,2.60804]
[1724741810160,1.15710832,2684.1,2684.0,2.60804]
[1724741810357,3.80260306,2684.2,2684.0,2.60804]
[1724741810574,1.15684327,2684.1,2684.0,2.60804]
[1724741810775,1.54634375,2684.1,2684.0,2.60804]
[1724741811793,0.38950048,2684.1,2683.8,3.85838808]
[1724741811967,1.54610664,2684.1,2683.8,3.85838808]
[1724741814503,0.38950048,2684.1,2683.8,3.85838808]
[1724741815204,2.2586,2684.0,2683.8,2.60824]
[1724741817207,1.54610664,2684.1,2683.9,2.60814]
[1724741817405,0.38950048,2684.1,2683.9,2.60814]
[1724741818302,1.54610664,2684.1,2683.8,3.85838808]
[1724741818504,0.38950048,2684.1,2683.8,3.85838808]
[1724741820171,1.54610664,2684.1,2683.8,3.85838808]
[1724741820379,0.38950048,2684.1,2683.8,3.85838808]
[1724741821282,0.38950048,2684.1,2683.8,2.60824]
[1724741822724,0.38950048,2684.1,2683.6,6.46691808]
[1724741822725,1.54610664,2684.1,2683.6,6.46691808]
[1724741822924,2.2586,2684.0,2683.6,5.21672]
[1724741823446,2.2586,2684.0,2683.7,2.6083]
[1724741825297,2.2586,2684.0,2683.6,3.85850808]
[1724741825298,2.2586,2684.0,2683.8,2.60822]
[1724741826302,2.2586,2684.0,2683.6,2.60836]
[1724741826502,2.323,2683.9,2683.6,2.60836]
[1724741826738,3.47960616,2683.9,2683.6,2.60836]
[1724741827105,0.38957456,2683.8,2683.6,2.60836]
[1724741830506,0.38957456,2683.8,2683.4,5.21716]
[1724741830842,0.38957456,2683.8,2683.4,2.60854]
[1724741830843,2.323,2683.7,2683.4,2.60854]
[1724741831352,1.54618072,2683.8,2683.4,2.60854]
[1724741831353,0.38957456,2683.8,2683.6,2.60843]
[1724741831647,0.38957456,2683.8,2683.7,6.46680808]
[1724741831851,0.38957456,2683.8,2683.7,8.93830808]
[1724741836860,0.38957456,2683.8,2683.7,6.46680808]
[1724741837726,0.38957456,2683.8,2683.7,5.21666]
[1724741838122,0.38957456,2683.8,2683.7,6.46680808]
[1724741845508,0.38957456,2683.8,2683.7,5.21666]
[1724741847279,0.38957456,2683.8,2683.7,2.60833]
[1724741847469,4.04488072,2683.8,2683.5,2.60849]
[1724741847670,1.15660616,2683.7,2683.5,2.60849]
[1724741847881,1.15660616,2683.7,2683.1,2.60885]
[1724741847882,2.4987,2683.6,2683.1,2.60885]
[1724741848071,1.15511637,2683.5,2683.1,2.60885]
[1724741848580,1.54472183,2683.5,2683.1,2.60885]
[1724741849767,1.54472183,2683.5,2683.1,5.21768]
[1724741850369,1.54472183,2683.5,2683.2,2.60875]
[1724741851474,1.54472183,2683.5,2683.3,2.60871]
[1724741853598,1.54472183,2683.5,2683.3,2.60864]
[1724741853792,1.54472183,2683.5,2683.4,2.60863]
[1724741854497,1.54472183,2683.5,2683.3,2.60864]
[1724741854672,1.15511637,2683.4,2683.3,2.60864]
[1724741854995,1.54472183,2683.5,2683.4,2.60863]
[1724741855407,0.38960546,2683.5,2683.4,2.60863]
[1724741856373,1.54472183,2683.5,2683.4,2.60863]
[1724741856566,1.54472183,2683.5,2683.3,2.60864]
[1724741858378,1.54364415,2683.5,2683.3,2.60864]
[1724741859075,1.15511637,2683.4,2683.3,2.60864]
[1724741860705,1.54364415,2683.5,2683.3,5.21728]
[1724741861189,1.54364415,2683.5,2683.3,2.60864]
[1724741863018,1.54364415,2683.5,2683.3,5.21729]
[1724741863329,1.54364415,2683.5,2683.4,2.60863]
[1724741864169,1.54364415,2683.5,2683.3,2.60864]
[1724741865083,1.54364415,2683.5,2683.3,5.21729]
[1724741865281,1.54364415,2683.5,2683.3,2.60864]
[1724741867708,1.54364415,2683.5,2683.4,2.60863]
[1724741871184,1.54364415,2683.5,2683.3,2.60864]
[1724741874121,3.83670306,2683.4,2683.1,2.60889]
[1724741874423,2.40528972,2683.3,2683.1,2.60889]
[1724741874592,1.15514164,2683.2,2683.1,2.60889]
[1724741875308,1.15514164,2683.2,2682.6,2.4494]
[1724741875309,2.2927,2683.1,2682.6,2.60931]
[1724741875491,3.44743223,2683.1,2682.6,2.60931]
[1724741875687,1.15473223,2683.0,2682.6,2.60931]
[1724741877113,1.15473223,2682.9,2682.6,2.60931]
[1724741877285,1.15473223,2683.0,2682.6,2.60931]
[1724741878492,1.25014808,2682.9,2682.6,2.60931]
[1724741878794,1.51232077,2683.0,2682.6,2.60931]
[1724741879651,1.15473223,2682.9,2682.6,2.60931]
[1724741880204,1.15473223,2682.9,2682.4,2.60955]
[1724741880205,2.2927,2682.8,2682.4,2.60955]
[1724741880502,2.2927,2682.8,2682.5,2.60949]
[1724741882633,2.2927,2682.8,2682.6,2.60939]
[1724741882814,3.80502077,2683.0,2682.6,2.60939]
[1724741883014,1.15473223,2683.1,2683.0,2.60901]
[1724741883215,1.54400306,2683.2,2683.0,2.60901]
[1724741883216,1.15473223,2683.2,2683.0,2.60901]
[1724741883404,3.44743223,2683.3,2683.0,2.60901]
[1724741886623,3.44743223,2683.3,2682.8,2.60912]
[1724741887461,1.15473223,2683.2,2682.8,2.60912]
[1724741887987,1.15473223,2683.1,2682.8,2.60912]
[1724741888833,1.15473223,2683.1,2682.6,2.60934]
[1724741889036,1.15473223,2683.0,2682.6,2.60934]
[1724741889262,2.3407,2682.9,2682.6,2.60934]
[1724741889764,3.49543223,2683.1,2682.6,2.60934]
[1724741890679,1.15473223,2683.0,2682.6,2.60934]
[1724741892482,1.15473223,2683.0,2682.7,2.6093]
[1724741892668,1.15473223,2683.1,2682.7,2.6093]
[1724741894772,1.15473223,2683.0,2682.7,2.6093]
[1724741895086,1.15473223,2683.1,2682.7,2.6093]
[1724741895293,1.15473223,2683.1,2682.8,4.94332]
[1724741895486,1.15473223,2683.2,2682.9,2.60911]
[1724741895885,1.15473223,2683.2,2683.0,2.60901]
[1724741896105,1.15473223,2683.2,2683.0,2.60894]
[1724741896315,1.15473223,2683.4,2683.2,2.3342]
[1724741896563,1.15473223,2683.4,2683.3,2.60872]
[1724741896794,1.15473223,2683.5,2683.3,2.60872]
[1724741897558,1.15473223,2683.6,2683.3,2.60872]
[1724741899429,1.15473223,2683.6,2683.2,2.3342]
[1724741899631,1.15473223,2683.5,2683.2,4.94301]
[1724741905399,1.15473223,2683.4,2683.2,2.60881]
[1724741905667,3.57513223,2683.4,2682.9,2.60909]
[1724741905863,1.15473223,2683.3,2682.9,2.60909]
[1724741906227,1.15473223,2683.3,2683.0,2.60899]
[1724741908925,1.15473223,2683.3,2683.1,2.60892]
[1724741909563,3.96440306,2683.2,2682.6,2.60931]
[1724741909769,1.15518725,2683.1,2682.7,3.51084808]
[1724741909977,1.15518725,2683.2,2682.7,3.51084808]
[1724741910180,1.15518725,2683.2,2682.9,2.60904]
[1724741910492,1.15518725,2683.2,2683.0,2.609]
[1724741910795,1.54400306,2683.3,2683.1,3.85906808]
[1724741910796,1.15518725,2683.3,2683.1,3.85906808]
[1724741911680,1.15518725,2683.3,2683.2,2.60882]
[1724741912548,1.15518725,2683.3,2683.1,2.60892]
[1724741915884,1.15518725,2683.3,2682.9,3.85922808]
[1724741916582,5.0206,2683.1,2682.4,7.68451]
[1724741916885,1.15518725,2683.0,2682.6,3.85950808]
[1724741917087,1.15518725,2683.1,2682.8,2.6092]
[1724741918347,1.15518725,2683.1,2682.8,5.21835]
[1724741918857,1.15518725,2683.1,2682.8,3.50253981]
[1724741919056,1.15518725,2683.1,2683.0,2.60901]
[1724741921973,1.92669889,2683.4,2683.1,2.60892]
[1724741921974,1.15518725,2683.2,2683.1,2.60892]
[1724741922187,1.15518725,2683.2,2683.1,5.07432]
[1724741922366,1.15518725,2683.4,2683.2,2.60882]
[1724741922560,1.15518725,2683.5,2683.4,2.60863]
[1724741922963,7.28,2683.6,2683.4,2.60863]
[1724741922964,8.43518725,2683.6,2683.4,2.60863]
[1724741923885,8.43518725,2683.6,2683.2,2.60875]
[1724741925009,8.43518725,2683.6,2683.3,2.60871]
[1724741925816,1.15518725,2683.6,2683.3,2.60871]
[1724741926411,1.15518725,2683.5,2683.3,2.60871]
[1724741927827,1.15518725,2683.5,2683.4,2.60863]
[1724741930882,1.15518725,2683.6,2683.4,2.60863]
[1724741931389,1.15518725,2683.5,2683.4,2.60863]
[1724741931587,1.15518725,2683.6,2683.4,2.60863]
[1724741932399,1.15518725,2683.5,2683.4,2.60863]
[1724741932599,1.15518725,2683.6,2683.4,2.60863]
[1724741933702,1.54400306,2683.7,2683.4,2.60863]
[1724741933703,1.15518725,2683.5,2683.4,2.60863]
[1724741935333,1.15518725,2683.5,2683.2,5.2175]
[1724741935497,1.54400306,2683.6,2683.2,5.98579]
[1724741935498,1.15518725,2683.6,2683.2,5.98579]
[1724741935697,1.15518725,2683.6,2683.3,2.60871]
[1724741936123,1.15518725,2683.5,2683.3,2.60871]
[1724741936696,1.15518725,2683.6,2683.3,2.60871]
[1724741937639,1.15518725,2683.5,2683.3,2.60871]
[1724741939223,1.15518725,2683.5,2683.4,2.60863]
[1724741939427,1.54400306,2683.6,2683.5,2.60853]
[1724741939428,1.15518725,2683.6,2683.5,2.60853]
[1724741940231,1.54400306,2683.7,2683.5,2.60853]
[1724741940841,1.15650151,2683.6,2683.5,2.60853]
[1724741941046,1.54400306,2683.7,2683.5,2.60853]
[1724741942851,1.54400306,2683.6,2683.3,5.21737]
[1724741943192,1.15642963,2683.5,2683.3,5.21737]
[1724741943323,1.15642963,2683.4,2683.3,5.21737]
[1724741943518,1.15642963,2683.5,2683.3,5.21737]
[1724741944138,1.15642963,2683.5,2683.3,2.60866]
[1724741944651,1.15642963,2683.5,2683.4,2.60863]
[1724741944809,1.15642963,2683.6,2683.4,2.60863]
[1724741946449,1.15642963,2683.6,2683.5,2.60853]
[1724741947429,1.54400306,2683.7,2683.5,2.60853]
[1724741948021,1.54400306,2683.7,2683.3,5.21731]
[1724741948321,1.15628479,2683.5,2683.3,5.21731]
[1724741948549,1.15628479,2683.6,2683.4,2.6086]
[1724741949556,1.15628479,2683.6,2683.5,2.60853]
[1724741951458,1.54400306,2683.7,2683.5,2.60853]
[1724741951459,1.15628479,2683.7,2683.6,2.60843]
[1724741951865,1.15628479,2683.8,2683.6,2.60843]
[1724741952618,1.15628479,2683.7,2683.5,2.60853]
[1724741952858,1.42631358,2683.7,2683.3,2.60869]
[1724741953044,1.15628479,2683.6,2683.3,2.60869]
[1724741954350,1.15628479,2683.6,2683.3,2.60864]
[1724741954727,1.15628479,2683.6,2683.4,2.60856]
[1724741955772,1.15628479,2683.7,2683.4,2.60856]
[1724741956926,1.15628479,2683.6,2683.4,2.60856]
[1724741957129,1.15628479,2683.7,2683.4,2.60856]
[1724741958033,1.15628479,2683.7,2683.5,2.60849]
[1724741958361,1.15628479,2683.7,2683.6,2.60843]
[1724741958931,1.15628479,2683.7,2683.6,5.21686]
[1724741959125,1.15628479,2683.8,2683.7,2.60833]
[1724741959668,1.15628479,2683.9,2683.7,4.50713889]
[1724741959826,1.15628479,2684.1,2683.7,4.50713889]
[1724741960026,1.15628479,2684.2,2684.0,2.60795]
[1724741960356,8.43628479,2684.3,2684.0,2.60795]
[1724741960549,1.15628479,2684.3,2684.1,2.60794]
[1724741962443,1.15628479,2684.4,2684.1,2.60794]
[1724741962836,1.15628479,2684.3,2684.1,2.60794]
[1724741963452,1.54400306,2684.5,2684.1,2.60794]
[1724741964340,3.82990719,2684.6,2684.2,2.60785]
[1724741964542,1.54400306,2684.5,2684.2,2.60785]
[1724741966994,3.82990719,2684.6,2684.2,2.60785]
[1724741967138,1.54400306,2684.5,2684.2,2.60785]
[1724741967340,3.82990719,2684.6,2684.2,2.60785]
[1724741967651,1.54400719,2684.6,2684.2,2.60785]
[1724741968069,1.54400306,2684.5,2684.2,2.60785]
[1724741970442,4.13e-06,2684.6,2684.2,2.60785]
[1724741975577,4.13e-06,2684.6,2684.2,5.21561]
[1724741975778,4.13e-06,2684.6,2684.3,2.60767]
[1724741976685,4.13e-06,2684.6,2684.4,2.60765]
[1724741977886,4.13e-06,2684.6,2684.4,4.97175]
[1724741978649,4.13e-06,2684.6,2684.4,2.60765]
[1724741979250,4.13e-06,2684.6,2684.4,3.365601]
[1724741980069,4.13e-06,2684.6,2684.4,3.365521]
[1724741980272,4.13e-06,2684.6,2684.5,2.60756]
[1724741981086,4.13e-06,2684.6,2684.4,3.365521]
[1724741981401,4.13e-06,2684.6,2684.2,2.60783]
[1724741982173,4.13e-06,2684.6,2684.3,2.60775]
[1724741982706,4.13e-06,2684.6,2684.2,2.60783]
[1724741983216,4.13e-06,2684.6,2684.3,2.60774]
[1724741983551,4.13e-06,2684.6,2684.3,3.22993881]
[1724741984155,4.13e-06,2684.6,2684.3,2.60774]
[1724741985776,4.13e-06,2684.6,2684.1,2.60794]
[1724741986753,4.13e-06,2684.6,2684.2,2.60783]
[1724741988595,4.13e-06,2684.6,2684.3,2.60772]
[1724741988982,2.3182,2684.5,2684.3,2.60772]
[1724741990595,4.13e-06,2684.6,2684.3,2.60772]
[1724741990796,4.13e-06,2684.6,2684.4,2.60765]